bitfinex/quotes_BTCUSD_20240728
["timestamp","ask_amount","ask_price","bid_price","bid_amount"]
[1722148462162,1.59710583,67647.0,67646.0,0.16551365]
[1722148464569,1.7467074,67647.0,67646.0,0.16551365]
[1722148464773,1.59710583,67647.0,67646.0,0.16551365]
[1722148464982,1.5872321,67647.0,67646.0,0.16551365]
[1722148465524,1.58809987,67647.0,67646.0,0.16551365]
[1722148465855,1.88475944,67647.0,67646.0,0.02611365]
[1722148466057,1.82135944,67647.0,67646.0,0.02611365]
[1722148466461,2.05788044,67647.0,67646.0,0.02611365]
[1722148466682,1.90762087,67647.0,67646.0,0.02611365]
[1722148466947,1.67109987,67647.0,67646.0,0.02611365]
[1722148467128,1.90762087,67647.0,67646.0,0.02611365]
[1722148467629,1.90762087,67647.0,67646.0,0.02703765]
[1722148467989,1.90794358,67647.0,67646.0,0.02703765]
[1722148468620,1.81904699,67647.0,67646.0,0.02703765]
[1722148468819,1.90793624,67647.0,67646.0,0.02703765]
[1722148469226,1.58852342,67647.0,67646.0,0.02703765]
[1722148472011,1.58963531,67647.0,67646.0,0.02703765]
[1722148472309,1.58963564,67647.0,67646.0,0.02703765]
[1722148473296,1.71377925,67647.0,67646.0,0.02703765]
[1722148475419,2.03316885,67647.0,67646.0,0.02703765]
[1722148475620,2.09656885,67647.0,67646.0,0.02703765]
[1722148476163,2.09659078,67647.0,67646.0,0.02703765]
[1722148476384,2.33311178,67647.0,67646.0,0.02703765]
[1722148476947,2.3340185,67647.0,67646.0,0.02703765]
[1722148477382,0.9526325,67647.0,67635.0,0.000924]
[1722148477580,0.9526325,67647.0,67630.0,0.00081775]
[1722148477581,0.264681,67635.0,67630.0,0.00081775]
[1722148477742,0.43475,67634.0,67630.0,0.00081775]
[1722148477938,1.59794166,67634.0,67630.0,0.00081775]
[1722148478151,0.828019,67631.0,67630.0,0.00081775]
[1722148478361,0.828019,67631.0,67616.0,0.009152]
[1722148478362,0.733622,67622.0,67616.0,0.009152]
[1722148478567,1.45981761,67622.0,67616.0,0.009152]
[1722148478771,1.83360004,67622.0,67616.0,0.009152]
[1722148478975,1.77140004,67622.0,67616.0,0.009152]
[1722148479285,1.69150004,67622.0,67616.0,0.009152]
[1722148479683,1.70550004,67622.0,67616.0,0.009152]
[1722148480121,1.79181788,67622.0,67616.0,0.009152]
[1722148480346,1.46889104,67622.0,67616.0,0.009152]
[1722148480569,1.60188951,67622.0,67620.0,0.0628]
[1722148481128,1.61588951,67622.0,67620.0,0.0628]
[1722148481398,1.45329588,67622.0,67620.0,0.0628]
[1722148481594,1.45329588,67622.0,67621.0,0.144]
[1722148481595,1.15398891,67622.0,67621.0,0.144]
[1722148481825,1.26477895,67622.0,67621.0,0.144]
[1722148481943,1.15431256,67622.0,67621.0,0.144]
[1722148482142,1.14031256,67622.0,67621.0,0.144]
[1722148482349,1.2370885,67622.0,67621.0,0.144]
[1722148482731,1.2650885,67622.0,67621.0,0.144]
[1722148483129,1.1879885,67622.0,67621.0,0.144]
[1722148483338,1.07721256,67622.0,67621.0,0.144]
[1722148483894,1.1739885,67622.0,67621.0,0.144]
[1722148484095,1.17409828,67622.0,67621.0,0.144]
[1722148484300,1.18809828,67622.0,67621.0,0.144]
[1722148485249,1.07733899,67622.0,67621.0,0.144]
[1722148485473,1.04856201,67622.0,67621.0,0.144]
[1722148485673,1.07723666,67622.0,67621.0,0.144]
[1722148486102,1.07723764,67622.0,67621.0,0.144]
[1722148486907,1.24541062,67622.0,67621.0,0.144]
[1722148487124,1.13468028,67622.0,67621.0,0.144]
[1722148487612,1.24541062,67622.0,67621.0,0.144]
[1722148487946,1.24539193,67622.0,67621.0,0.144]
[1722148488205,1.13468028,67622.0,67621.0,0.144]
[1722148488433,1.24538677,67622.0,67621.0,0.144]
[1722148488627,1.07723764,67622.0,67621.0,0.14396]
[1722148488826,1.1879391,67622.0,67621.0,0.14396]
[1722148491702,1.16577729,67622.0,67621.0,0.14396]
[1722148492067,0.81195301,67622.0,67621.0,0.14396]
[1722148492194,0.84128298,67622.0,67621.0,0.14396]
[1722148492400,1.07789198,67622.0,67621.0,0.14396]
[1722148492643,0.84128298,67622.0,67621.0,0.14396]
[1722148492797,1.07789198,67622.0,67621.0,0.14396]
[1722148493002,1.06389198,67622.0,67621.0,0.14396]
[1722148493405,1.07789198,67622.0,67621.0,0.14396]
[1722148493611,1.06389198,67622.0,67621.0,0.14396]
[1722148493806,1.04989198,67622.0,67621.0,0.14396]
[1722148494008,1.07089198,67622.0,67621.0,0.14396]
[1722148494258,1.06389198,67622.0,67621.0,0.14396]
[1722148494659,1.04989198,67622.0,67621.0,0.14396]
[1722148495182,1.05789198,67622.0,67621.0,0.14396]
[1722148495358,1.02856201,67622.0,67621.0,0.14396]
[1722148495568,1.05770548,67622.0,67621.0,0.14396]
[1722148495735,1.16056168,67622.0,67621.0,0.14396]
[1722148495935,1.16752475,67622.0,67621.0,0.14396]
[1722148496132,0.82805955,67622.0,67621.0,0.14396]
[1722148496333,0.44119098,67622.0,67621.0,0.14396]
[1722148496737,0.67779998,67622.0,67621.0,0.14396]
[1722148496945,0.44119098,67622.0,67621.0,0.14396]
[1722148497155,0.67779998,67622.0,67621.0,0.14396]
[1722148497606,0.67759912,67622.0,67621.0,0.14396]
[1722148497799,0.44099012,67622.0,67621.0,0.14396]
[1722148498971,0.67759912,67622.0,67621.0,0.14396]
[1722148499169,0.015,67622.0,67621.0,0.262266]
[1722148499617,0.015,67622.0,67621.0,0.498878]
[1722148500268,0.118294,67628.0,67622.0,0.118303]
[1722148500442,0.02852398,67627.0,67625.0,0.1435]
[1722148500581,0.02852398,67627.0,67626.0,0.1450542]
[1722148500778,0.02852398,67627.0,67626.0,0.1435]
[1722148500980,0.02852398,67627.0,67626.0,0.0657]
[1722148501181,0.14683765,67628.0,67623.0,0.118302]
[1722148501470,0.02854365,67627.0,67623.0,0.118302]
[1722148501745,0.02854365,67627.0,67624.0,0.1435]
[1722148501945,0.02854365,67627.0,67625.0,0.1435]
[1722148502145,0.02854365,67627.0,67623.0,0.118302]
[1722148502372,0.02854365,67627.0,67626.0,0.1435]
[1722148502558,0.03354365,67627.0,67626.0,0.1435]
[1722148502923,0.02854365,67627.0,67626.0,0.1435]
[1722148503115,0.03354365,67627.0,67626.0,0.1435]
[1722148503616,0.007,67628.0,67627.0,0.498386]
[1722148503942,0.00084,67630.0,67628.0,0.118293]
[1722148504174,0.00084,67630.0,67629.0,0.1435]
[1722148504760,0.00084,67630.0,67629.0,0.261792]
[1722148505959,0.00184,67630.0,67629.0,0.261792]
[1722148507059,0.00084,67630.0,67629.0,0.261792]
[1722148507665,0.00284,67630.0,67629.0,0.7379171]
[1722148508080,0.00184,67630.0,67629.0,0.7379171]
[1722148508491,0.00284,67630.0,67629.0,0.7379171]
[1722148508904,0.00184,67630.0,67629.0,0.73496]
[1722148509429,0.00284,67630.0,67629.0,0.73496]
[1722148510713,0.00284,67630.0,67629.0,1.12180357]
[1722148510939,0.00284,67630.0,67629.0,0.88521957]
[1722148517090,0.00284,67630.0,67629.0,0.96241957]
[1722148517304,0.00284,67630.0,67629.0,0.1435]
[1722148517714,0.00935257,67630.0,67629.0,0.2207]
[1722148517918,0.00284,67630.0,67629.0,0.2207]
[1722148518173,0.00284,67630.0,67629.0,0.22931581]
[1722148518174,0.00935257,67630.0,67629.0,0.22931581]
[1722148518344,0.00284,67630.0,67629.0,0.22931581]
[1722148518544,0.00935257,67630.0,67629.0,0.22931581]
[1722148519816,0.00835257,67630.0,67629.0,0.22931581]
[1722148520159,0.00935257,67630.0,67629.0,0.22931581]
[1722148520295,0.00835257,67630.0,67629.0,0.22931581]
[1722148521459,0.00935257,67630.0,67629.0,0.15211581]
[1722148523167,0.60080457,67630.0,67629.0,0.1435]
[1722148523333,0.118296,67627.0,67622.0,0.1970582]
[1722148523547,0.118298,67626.0,67623.0,0.1]
[1722148523747,0.12493064,67626.0,67624.0,0.1451]
[1722148524488,0.00663264,67626.0,67624.0,0.1451]
[1722148524689,0.00763264,67626.0,67624.0,0.1451]
[1722148525159,0.00863264,67626.0,67624.0,0.1451]
[1722148525706,0.118299,67625.0,67624.0,0.1451]
[1722148526079,0.354897,67625.0,67624.0,0.2451]
[1722148526192,0.36152964,67625.0,67624.0,0.2451]
[1722148526405,0.59812764,67625.0,67624.0,0.1]
[1722148526602,0.59812764,67625.0,67622.0,0.07085551]
[1722148526603,0.591512,67623.0,67622.0,0.07085551]
[1722148526806,0.354913,67622.0,67621.0,0.085984]
[1722148527032,0.62489014,67622.0,67621.0,0.002884]
[1722148527234,0.66431639,67622.0,67621.0,0.002884]
[1722148527436,0.90092539,67622.0,67621.0,0.002884]
[1722148529670,0.90292539,67622.0,67621.0,0.002884]
[1722148530014,1.05318496,67622.0,67621.0,0.002884]
[1722148530219,1.05618496,67622.0,67621.0,0.002884]
[1722148530708,1.056851,67622.0,67621.0,0.002884]
[1722148531319,1.205051,67622.0,67621.0,0.002884]
[1722148531494,1.21878845,67622.0,67621.0,0.002884]
[1722148534026,1.21854824,67622.0,67621.0,0.002884]
[1722148534575,1.21854849,67622.0,67621.0,0.002884]
[1722148535095,1.45515749,67622.0,67621.0,0.002884]
[1722148536368,1.45457182,67622.0,67621.0,0.002884]
[1722148537175,1.44857182,67622.0,67621.0,0.002884]
[1722148537382,1.53237927,67622.0,67621.0,0.002884]
[1722148537556,1.4548496,67622.0,67621.0,0.002884]
[1722148537791,1.4648496,67622.0,67621.0,0.002884]
[1722148538137,1.4438496,67622.0,67621.0,0.002884]
[1722148538513,1.4548496,67622.0,67621.0,0.002884]
[1722148538860,1.93006985,67622.0,67621.0,0.002884]
[1722148539064,1.92595004,67622.0,67621.0,0.002884]
[1722148539573,1.93595004,67622.0,67621.0,0.002884]
[1722148540019,1.92595004,67622.0,67621.0,0.002884]
[1722148540221,1.93995004,67622.0,67621.0,0.002884]
[1722148540431,1.77869047,67622.0,67621.0,0.002884]
[1722148540630,1.70397838,67622.0,67621.0,0.002884]
[1722148540839,1.87993631,67622.0,67621.0,0.002884]
[1722148540995,1.89393631,67622.0,67621.0,0.002884]
[1722148541343,1.86593631,67622.0,67621.0,0.002884]
[1722148541564,1.87993631,67622.0,67621.0,0.002884]
[1722148541751,1.89393631,67622.0,67621.0,0.002884]
[1722148542114,2.04419588,67622.0,67621.0,0.002884]
[1722148543819,2.0443596,67622.0,67621.0,0.002884]
[1722148544244,2.0445572,67622.0,67621.0,0.002884]
[1722148544456,1.95468649,67622.0,67621.0,0.002884]
[1722148544681,2.03055815,67622.0,67621.0,0.002884]
[1722148545084,1.88029858,67622.0,67621.0,0.002884]
[1722148545285,1.86629858,67622.0,67621.0,0.002884]
[1722148545892,2.11165611,67622.0,67621.0,0.002884]
[1722148546296,2.11160126,67622.0,67621.0,0.002884]
[1722148546904,2.13960126,67622.0,67621.0,0.002884]
[1722148547303,2.12571002,67622.0,67621.0,0.002884]
[1722148547501,2.11171002,67622.0,67621.0,0.002884]
[1722148547708,2.12571002,67622.0,67621.0,0.002884]
[1722148547877,2.28996959,67622.0,67621.0,0.002884]
[1722148548072,2.11171002,67622.0,67621.0,0.002884]
[1722148548501,2.13971002,67622.0,67621.0,0.002884]
[1722148549051,2.12571002,67622.0,67621.0,0.002884]
[1722148549251,2.13971002,67622.0,67621.0,0.002884]
[1722148550015,2.12571002,67622.0,67621.0,0.002884]
[1722148550421,2.13971002,67622.0,67621.0,0.002884]
[1722148550627,2.1395125,67622.0,67621.0,0.002884]
[1722148551118,2.36707207,67622.0,67621.0,0.002884]
[1722148551306,2.2168125,67622.0,67621.0,0.002884]
[1722148552118,2.32721594,67622.0,67621.0,0.002884]
[1722148552323,2.2168125,67622.0,67621.0,0.002884]
[1722148552966,2.32720715,67622.0,67621.0,0.002884]
[1722148553167,2.2168125,67622.0,67621.0,0.002884]
[1722148553475,2.32719977,67622.0,67621.0,0.002884]
[1722148554288,2.2168125,67622.0,67621.0,0.002884]
[1722148554495,2.21650351,67622.0,67621.0,0.002884]
[1722148555661,2.2163015,67622.0,67621.0,0.002884]
[1722148556275,2.21629806,67622.0,67621.0,0.002884]
[1722148557138,2.29035048,67622.0,67621.0,0.002884]
[1722148557340,2.26283783,67622.0,67621.0,0.002884]
[1722148557493,2.29033003,67622.0,67621.0,0.002884]
[1722148557702,2.3178223,67622.0,67621.0,0.002884]
[1722148560079,2.33210937,67622.0,67621.0,0.002884]
[1722148560206,2.30461688,67622.0,67621.0,0.002884]
[1722148560676,2.21627739,67622.0,67621.0,0.002884]
[1722148560897,2.32671563,67622.0,67621.0,0.002884]
[1722148561343,2.21627739,67622.0,67621.0,0.002884]
[1722148561546,2.36653696,67622.0,67621.0,0.002884]
[1722148562983,2.36633709,67622.0,67621.0,0.002884]
[1722148563481,2.27714201,67622.0,67621.0,0.002884]
[1722148563800,2.3661423,67622.0,67621.0,0.002884]
[1722148564010,2.21588273,67622.0,67621.0,0.002884]
[1722148565415,2.2167546,67622.0,67621.0,0.002884]
[1722148566320,2.12772244,67622.0,67621.0,0.002884]
[1722148566520,2.21675296,67622.0,67621.0,0.002884]
[1722148568497,2.34944449,67622.0,67621.0,0.002884]
[1722148568716,2.21675296,67622.0,67621.0,0.002884]
[1722148568922,2.13945296,67622.0,67621.0,0.002884]
[1722148569129,1.83794396,67622.0,67621.0,0.002884]
[1722148569331,1.97063549,67622.0,67621.0,0.002884]
[1722148569491,1.89333549,67622.0,67621.0,0.002884]
[1722148569693,1.97191339,67622.0,67621.0,0.002884]
[1722148570154,2.12217296,67622.0,67621.0,0.002884]
[1722148570293,1.98948143,67622.0,67621.0,0.002884]
[1722148571318,2.12828143,67622.0,67621.0,0.002884]
[1722148572941,2.12907587,67622.0,67621.0,0.002884]
[1722148573574,2.12894846,67622.0,67621.0,0.002884]
[1722148575516,2.12855592,67622.0,67621.0,0.002884]
[1722148577768,2.11228582,67622.0,67621.0,0.002884]
[1722148578042,2.12765589,67622.0,67621.0,0.002884]
[1722148579945,2.12644373,67622.0,67621.0,0.002884]
[1722148582999,2.03707298,67622.0,67621.0,0.002884]
[1722148583192,2.12679783,67622.0,67621.0,0.002884]
[1722148583577,2.12679402,67622.0,67621.0,0.002884]
[1722148584377,2.34546324,67622.0,67621.0,0.002884]
[1722148585101,2.26816324,67622.0,67621.0,0.002884]
[1722148585302,2.34546324,67622.0,67621.0,0.002884]
[1722148585461,2.34556797,67622.0,67621.0,0.002884]
[1722148586428,2.34582947,67622.0,67621.0,0.002884]
[1722148588654,2.1955699,67622.0,67621.0,0.002884]
[1722148588865,1.8379931,67622.0,67621.0,0.002884]
[1722148589438,2.0567699,67622.0,67621.0,0.002884]
[1722148589783,1.96683829,67622.0,67621.0,0.002884]
[1722148589937,2.05686529,67622.0,67621.0,0.002884]
[1722148590339,1.83804041,67622.0,67621.0,0.002884]
[1722148591004,2.05686529,67622.0,67621.0,0.002884]
[1722148591532,1.83804041,67622.0,67621.0,0.002884]
[1722148592742,1.98829998,67622.0,67621.0,0.002884]
[1722148593145,1.83811205,67622.0,67621.0,0.002884]
[1722148593558,1.74801341,67622.0,67621.0,0.002884]
[1722148593747,1.83820578,67622.0,67621.0,0.002884]
[1722148595415,2.0570342,67622.0,67621.0,0.002884]
[1722148595565,2.05701147,67622.0,67621.0,0.002884]
[1722148596394,1.84944582,67622.0,67621.0,0.002884]
[1722148596553,2.13055542,67622.0,67621.0,0.002884]
[1722148598884,2.05701072,67622.0,67621.0,0.002884]
[1722148599687,2.05701072,67622.0,67621.0,0.066084]
[1722148599892,1.60154945,67622.0,67621.0,0.147684]
[1722148601255,1.83815845,67622.0,67621.0,0.147684]
[1722148601666,1.60154945,67622.0,67621.0,0.147684]
[1722148602944,1.52424945,67622.0,67621.0,0.147684]
[1722148603178,1.3431583,67622.0,67621.0,0.147684]
[1722148603801,1.31502237,67622.0,67621.0,0.147684]
[1722148604010,1.34390873,67622.0,67621.0,0.147684]
[1722148604626,1.31502193,67622.0,67621.0,0.147684]
[1722148604790,1.34390796,67622.0,67621.0,0.147684]
[1722148606562,1.34369501,67622.0,67621.0,0.147684]
[1722148609936,1.34394795,67622.0,67621.0,0.147684]
[1722148612118,1.49382025,67622.0,67621.0,0.147684]
[1722148612344,1.34394795,67622.0,67621.0,0.147684]
[1722148612482,1.58055695,67622.0,67621.0,0.147684]
[1722148613023,1.3702784,67622.0,67621.0,0.147684]
[1722148613256,1.58045115,67622.0,67621.0,0.147684]
[1722148613711,1.58045149,67622.0,67621.0,0.147684]
[1722148616292,1.55168992,67622.0,67621.0,0.147684]
[1722148616633,1.58023501,67622.0,67621.0,0.147684]
[1722148618887,1.56023501,67622.0,67621.0,0.147684]
[1722148619843,1.56016762,67622.0,67621.0,0.147684]
[1722148620412,1.32355862,67622.0,67621.0,0.147684]
[1722148622308,1.2319734,67622.0,67621.0,0.147684]
[1722148622517,1.32402116,67622.0,67621.0,0.147684]
[1722148622929,1.32387754,67622.0,67621.0,0.147684]
[1722148623678,1.45702734,67622.0,67621.0,0.147684]
[1722148624541,1.32387754,67622.0,67621.0,0.147684]
[1722148625194,1.45702734,67622.0,67621.0,0.002884]
[1722148625618,1.56040066,67622.0,67621.0,0.002884]
[1722148626382,1.69355131,67622.0,67621.0,0.002884]
[1722148627713,1.32379166,67622.0,67621.0,0.002884]
[1722148628054,1.45694231,67622.0,67621.0,0.002884]
[1722148629017,1.56003377,67622.0,67621.0,0.002884]
[1722148629563,1.24612477,67622.0,67621.0,0.141184]
[1722148629816,1.32342477,67622.0,67621.0,0.141184]
[1722148630221,1.24612477,67622.0,67621.0,0.141184]
[1722148630424,1.87384277,67622.0,67621.0,0.002884]
[1722148630623,1.84722935,67622.0,67621.0,0.002884]
[1722148630963,1.72043377,67622.0,67621.0,0.002884]
[1722148631746,1.87069334,67622.0,67621.0,0.002884]
[1722148632192,1.7233463,67622.0,67621.0,0.002884]
[1722148632583,1.62880442,67622.0,67621.0,0.002884]
[1722148632771,1.7233465,67622.0,67621.0,0.002884]
[1722148634346,1.62880442,67622.0,67621.0,0.002884]
[1722148634683,1.72334501,67622.0,67621.0,0.002884]
[1722148635367,1.72336313,67622.0,67621.0,0.002884]
[1722148635973,1.50866313,67622.0,67621.0,0.002884]
[1722148636193,1.73580199,67622.0,67621.0,0.002884]
[1722148636404,1.58596313,67622.0,67621.0,0.002884]
[1722148637431,1.59577002,67622.0,67621.0,0.002884]
[1722148637569,1.74561882,67622.0,67621.0,0.002884]
[1722148637768,1.59577002,67622.0,67621.0,0.002884]
[1722148638651,1.59645394,67622.0,67621.0,0.002884]
[1722148642103,1.59624145,67622.0,67621.0,0.002884]
[1722148642556,1.59624031,67622.0,67621.0,0.002884]
[1722148644134,1.59623903,67622.0,67621.0,0.002884]
[1722148645421,1.59633771,67622.0,67621.0,0.002884]
[1722148648872,1.59639871,67622.0,67621.0,0.002884]
[1722148650450,1.66029871,67622.0,67621.0,0.002884]
[1722148652104,1.59639871,67622.0,67621.0,0.002884]
[1722148652324,1.50121131,67622.0,67621.0,0.002884]
[1722148652548,1.59639387,67622.0,67621.0,0.002884]
[1722148654368,1.50121131,67622.0,67621.0,0.002884]
[1722148654564,1.59635999,67622.0,67621.0,0.002884]
[1722148655599,1.5963472,67622.0,67621.0,0.002884]
[1722148656575,1.5190472,67622.0,67621.0,0.002884]
[1722148656783,1.5963472,67622.0,67621.0,0.002884]
[1722148657605,1.5963472,67622.0,67621.0,0.066584]
[1722148658993,1.59637303,67622.0,67621.0,0.066584]
[1722148659775,1.49607303,67622.0,67621.0,0.148484]
[1722148659982,1.57337303,67622.0,67621.0,0.148484]
[1722148660991,1.54537303,67622.0,67621.0,0.148484]
[1722148661199,1.69530937,67622.0,67621.0,0.148484]
[1722148661406,1.72330937,67622.0,67621.0,0.148484]
[1722148662403,1.47821131,67622.0,67621.0,0.148484]
[1722148662609,1.7227609,67622.0,67621.0,0.148484]
[1722148662964,1.72276158,67622.0,67621.0,0.148484]
[1722148663174,1.72276158,67622.0,67621.0,0.108484]
[1722148663175,1.57282985,67622.0,67621.0,0.108484]
[1722148664735,1.57241416,67622.0,67621.0,0.108484]
[1722148665801,1.57247745,67622.0,67621.0,0.108484]
[1722148667946,1.14981992,67622.0,67621.0,0.108484]
[1722148669147,1.04155378,67622.0,67621.0,0.108484]
[1722148669348,1.08530699,67622.0,67621.0,0.108484]
[1722148669756,1.07130699,67622.0,67621.0,0.108484]
[1722148670383,1.08530699,67622.0,67621.0,0.108484]
[1722148670804,1.07130699,67622.0,67621.0,0.108484]
[1722148671577,1.08530699,67622.0,67621.0,0.108484]
[1722148671931,1.04603688,67622.0,67621.0,0.108484]
[1722148672308,0.93504742,67622.0,67621.0,0.108484]
[1722148672513,0.45225419,67622.0,67621.0,0.108484]
[1722148672713,0.24543244,67622.0,67621.0,0.108484]
[1722148673192,0.24542796,67622.0,67621.0,0.108484]
[1722148673522,0.23142796,67622.0,67621.0,0.108484]
[1722148673724,0.11312396,67622.0,67621.0,0.108484]
[1722148673926,0.10612396,67622.0,67621.0,0.108484]
[1722148674277,0.11212396,67622.0,67621.0,0.108484]
[1722148675848,0.11201025,67622.0,67621.0,0.108484]
[1722148676248,0.08683329,67622.0,67621.0,0.108484]
[1722148676470,0.06367714,67622.0,67621.0,0.108484]
[1722148676689,0.03400808,67622.0,67621.0,0.108484]
[1722148676896,0.03400808,67622.0,67621.0,0.1100382]
[1722148676897,0.06366421,67622.0,67621.0,0.1100382]
[1722148677251,0.03400808,67622.0,67621.0,0.108484]
[1722148681316,0.02700808,67622.0,67621.0,0.108484]
[1722148681721,0.02100808,67622.0,67621.0,0.108484]
[1722148681923,0.37592108,67622.0,67621.0,0.108484]
[1722148682135,0.7206976,67622.0,67621.0,0.108484]
[1722148682342,0.98046233,67622.0,67621.0,0.108484]
[1722148682467,1.00698929,67622.0,67621.0,0.108484]
[1722148683516,1.00998929,67622.0,67621.0,0.108484]
[1722148683925,1.00698929,67622.0,67621.0,0.108484]
[1722148684137,1.00711947,67622.0,67621.0,0.108484]
[1722148684331,0.93581947,67622.0,67621.0,0.108484]
[1722148684503,0.69921047,67622.0,67621.0,0.108484]
[1722148684718,0.70521047,67622.0,67621.0,0.108484]
[1722148684917,0.69926818,67622.0,67621.0,0.108484]
[1722148685115,0.67611252,67622.0,67621.0,0.108484]
[1722148685294,0.68611252,67622.0,67621.0,0.108484]
[1722148685517,0.70226808,67622.0,67621.0,0.108484]
[1722148685919,0.71226808,67622.0,67621.0,0.108484]
[1722148686126,0.67911252,67622.0,67621.0,0.108484]
[1722148686557,0.69226789,67622.0,67621.0,0.108484]
[1722148686760,0.69926789,67622.0,67621.0,0.108484]
[1722148687208,0.67611252,67622.0,67621.0,0.108484]
[1722148687344,0.68211252,67622.0,67621.0,0.108484]
[1722148687549,0.70526779,67622.0,67621.0,0.108484]
[1722148687750,0.70616958,67622.0,67621.0,0.108484]
[1722148687946,0.68301431,67622.0,67621.0,0.108484]
[1722148688344,0.44636856,67622.0,67621.0,0.108484]
[1722148688545,0.41893981,67622.0,67621.0,0.108484]
[1722148688947,0.09162114,67622.0,67621.0,0.108484]
[1722148689096,0.03400808,67622.0,67621.0,0.185784]
[1722148689501,0.01384,67622.0,67621.0,0.540702]
[1722148689708,0.03412739,67622.0,67621.0,0.777314]
[1722148689909,0.01384,67622.0,67621.0,0.777314]
[1722148690507,0.00684,67622.0,67621.0,0.777314]
[1722148690695,0.00084,67622.0,67621.0,0.777314]
[1722148691691,0.00084,67622.0,67621.0,0.540702]
[1722148691893,0.00084,67622.0,67621.0,0.22679]
[1722148692121,0.00084,67622.0,67621.0,0.108484]
[1722148692504,0.02112739,67622.0,67621.0,0.108484]
[1722148692710,0.00084,67622.0,67621.0,0.108484]
[1722148692904,0.13943139,67622.0,67621.0,0.108484]
[1722148693214,0.118308,67620.0,67619.0,0.0609]
[1722148693435,0.62191965,67620.0,67619.0,0.0609]
[1722148693633,0.66539596,67620.0,67619.0,0.0609]
[1722148693834,0.118313,67617.0,67616.0,0.070052]
[1722148694030,0.74963666,67617.0,67616.0,0.009152]
[1722148694234,0.98626266,67617.0,67616.0,0.009152]
[1722148694799,0.77004973,67617.0,67616.0,0.009152]
[1722148695002,0.69274973,67617.0,67616.0,0.009152]
[1722148695577,0.69974973,67617.0,67616.0,0.009152]
[1722148696194,0.70874973,67617.0,67616.0,0.009152]
[1722148698014,0.70877981,67617.0,67616.0,0.009152]
[1722148698190,0.70877951,67617.0,67616.0,0.009152]
[1722148700125,0.68562271,67617.0,67616.0,0.009152]
[1722148700326,0.70877899,67617.0,67616.0,0.009152]
[1722148701309,0.67833669,67617.0,67616.0,0.009152]
[1722148701481,0.70868671,67617.0,67616.0,0.009152]
[1722148701688,0.47206071,67617.0,67616.0,0.009152]
[1722148701890,0.47206915,67617.0,67616.0,0.009152]
[1722148702871,0.70869515,67617.0,67616.0,0.009152]
[1722148703301,0.47206915,67617.0,67616.0,0.009152]
[1722148703779,0.47232349,67617.0,67616.0,0.009152]
[1722148704417,0.70894949,67617.0,67616.0,0.009152]
[1722148704617,0.47232215,67617.0,67616.0,0.009152]
[1722148705854,0.70894815,67617.0,67616.0,0.009152]
[1722148707953,0.70873588,67617.0,67616.0,0.009152]
[1722148708554,0.47210988,67617.0,67616.0,0.009152]
[1722148709356,0.70873588,67617.0,67616.0,0.009152]
[1722148710710,0.70873588,67617.0,67616.0,0.145852]
[1722148711338,0.67833669,67617.0,67616.0,0.145852]
[1722148711539,0.70874113,67617.0,67616.0,0.145852]
[1722148711893,0.70881705,67617.0,67616.0,0.145852]
[1722148712069,0.70881705,67617.0,67616.0,0.009152]
[1722148713976,0.47218215,67617.0,67616.0,0.070452]
[1722148714519,0.47218022,67617.0,67616.0,0.070452]
[1722148714923,0.47218022,67617.0,67616.0,0.145852]
[1722148715127,0.47218022,67617.0,67616.0,0.009152]
[1722148715344,0.70880622,67617.0,67616.0,0.009152]
[1722148721400,0.70923716,67617.0,67616.0,0.009152]
[1722148721952,0.70923924,67617.0,67616.0,0.009152]
[1722148723838,0.70917191,67617.0,67616.0,0.009152]
[1722148724630,0.67833669,67617.0,67616.0,0.009152]
[1722148724840,0.7091719,67617.0,67616.0,0.009152]
[1722148725032,0.70917852,67617.0,67616.0,0.009152]
[1722148726448,0.7091511,67617.0,67616.0,0.009152]
[1722148728162,0.67833669,67617.0,67616.0,0.009152]
[1722148728374,0.70915828,67617.0,67616.0,0.009152]
[1722148728958,0.79796814,67617.0,67616.0,0.009152]
[1722148729173,0.70915828,67617.0,67616.0,0.009152]
[1722148729342,0.79796814,67617.0,67616.0,0.009152]
[1722148730423,0.70915828,67617.0,67616.0,0.009152]
[1722148730624,0.79796814,67617.0,67616.0,0.009152]
[1722148731151,1.24895371,67617.0,67616.0,0.009152]
[1722148731353,1.16014385,67617.0,67616.0,0.009152]
[1722148731582,1.16008703,67617.0,67616.0,0.009152]
[1722148731906,1.27109889,67617.0,67616.0,0.009152]
[1722148732058,1.27124551,67617.0,67616.0,0.009152]
[1722148732252,0.828229,67614.0,67613.0,0.006304]
[1722148732559,0.90959113,67614.0,67613.0,0.006304]
[1722148732749,0.92989227,67614.0,67613.0,0.006304]
[1722148733470,0.93589227,67614.0,67613.0,0.006304]
[1722148733872,0.93596488,67614.0,67613.0,0.006304]
[1722148734073,0.93996488,67614.0,67613.0,0.006304]
[1722148734891,0.93989843,67614.0,67613.0,0.006304]
[1722148738329,0.9399482,67614.0,67613.0,0.006304]
[1722148741070,0.90898142,67614.0,67613.0,0.006304]
[1722148741320,0.93991148,67614.0,67613.0,0.0078582]
[1722148741526,0.93991148,67614.0,67613.0,0.006304]
[1722148742265,1.02876494,67614.0,67613.0,0.006304]
[1722148743455,1.49438089,67614.0,67613.0,0.006304]
[1722148743618,1.53262473,67614.0,67613.0,0.006304]
[1722148743998,1.43667799,67614.0,67613.0,0.006304]
[1722148744198,1.53231798,67614.0,67613.0,0.006304]
[1722148744600,1.66560686,67614.0,67613.0,0.006304]
[1722148744788,1.66160686,67614.0,67613.0,0.006304]
[1722148745228,1.54131798,67614.0,67613.0,0.006304]
[1722148745440,1.53531798,67614.0,67613.0,0.006304]
[1722148745613,1.54931798,67614.0,67613.0,0.006304]
[1722148746239,1.53531798,67614.0,67613.0,0.006304]
[1722148746652,1.54931798,67614.0,67613.0,0.006304]
[1722148750697,1.54893201,67614.0,67613.0,0.006304]
[1722148751240,1.54872927,67614.0,67613.0,0.006304]
[1722148751848,1.78536627,67614.0,67613.0,0.006304]
[1722148752280,1.77136627,67614.0,67613.0,0.006304]
[1722148752476,1.78536627,67614.0,67613.0,0.006304]
[1722148753069,1.77136627,67614.0,67613.0,0.006304]
[1722148753439,1.77236627,67614.0,67613.0,0.006304]
[1722148753664,1.78636627,67614.0,67613.0,0.006304]